[Event "*** SCC Grand Prix: Titled Tuesday Blitz"]
[Site "Chess.com"]
[Date "2020.08.11"]
[Round "1"]
[White "alfiefischer77"]
[Black "Korchmar_Vasiliy"]
[Result "1-0"]
[WhiteElo "2294"]
[BlackElo "2613"]
[TimeControl "180+1"]
[EndTime "10:07:23 PDT"]
[Termination "alfiefischer77 won by resignation"]

1. e4 {[%clk 0:02:58.9]} 1... c6 {[%clk 0:02:57.4]} 2. d4 {[%clk 0:02:58.5]}
2... d5 {[%clk 0:02:56.2]} 3. exd5 {[%clk 0:02:59.4]} 3... cxd5 {[%clk
0:02:55.3]} 4. c4 {[%clk 0:02:59.9]} 4... Nf6 {[%clk 0:02:55]} 5. Nc3 {[%clk
0:03:00.3]} 5... g6 {[%clk 0:02:54.3]} 6. cxd5 {[%clk 0:02:59.1]} 6... Bg7
{[%clk 0:02:53.3]} 7. Bb5+ {[%clk 0:02:59.4]} 7... Nbd7 {[%clk 0:02:52.7]} 8. d6
{[%clk 0:02:58.5]} 8... O-O {[%clk 0:02:51.2]} 9. dxe7 {[%clk 0:02:55.1]} 9...
Qxe7+ {[%clk 0:02:52.1]} 10. Nge2 {[%clk 0:02:54]} 10... Rd8 {[%clk 0:02:45.2]}
11. O-O {[%clk 0:02:53]} 11... Nb6 {[%clk 0:02:41.5]} 12. Re1 {[%clk 0:02:44.2]}
12... Bg4 {[%clk 0:02:34.7]} 13. h3 {[%clk 0:02:37]} 13... Bf5 {[%clk
0:02:34.9]} 14. Ng3 {[%clk 0:02:22.3]} 14... Qb4 {[%clk 0:02:28.9]} 15. Nxf5
{[%clk 0:02:12.5]} 15... gxf5 {[%clk 0:02:29.8]} 16. a3 {[%clk 0:02:04]} 16...
Qxd4 {[%clk 0:02:27]} 17. Qxd4 {[%clk 0:02:01.3]} 17... Rxd4 {[%clk 0:02:27.9]}
18. Be3 {[%clk 0:02:00.4]} 18... Rd6 {[%clk 0:02:28.3]} 19. Rad1 {[%clk
0:01:51.8]} 19... Rad8 {[%clk 0:02:26.7]} 20. Bxb6 {[%clk 0:00:52.1]} 20... axb6
{[%clk 0:02:24.8]} 21. Rxd6 {[%clk 0:00:50.1]} 21... Rxd6 {[%clk 0:02:25.7]} 22.
Re7 {[%clk 0:00:50]} 22... Bh6 {[%clk 0:01:44.8]} 23. Rxb7 {[%clk 0:00:44.6]}
23... Bc1 {[%clk 0:01:42.1]} 24. Na4 {[%clk 0:00:39.9]} 24... Ne4 {[%clk
0:01:36.8]} 25. g3 {[%clk 0:00:29.6]} 25... f4 {[%clk 0:01:29.2]} 26. gxf4
{[%clk 0:00:27]} 26... Rd2 {[%clk 0:01:17.3]} 27. Nxb6 {[%clk 0:00:21.6]} 27...
Nxf2 {[%clk 0:01:07.4]} 28. Nc4 {[%clk 0:00:20.5]} 28... Nxh3+ {[%clk
0:01:06.5]} 29. Kf1 {[%clk 0:00:19.8]} 29... Rf2+ {[%clk 0:01:04.5]} 30. Ke1
{[%clk 0:00:20.2]} 30... Bxf4 {[%clk 0:01:01.5]} 31. a4 {[%clk 0:00:17.8]} 31...
Bg3 {[%clk 0:00:36.1]} 32. Kd1 {[%clk 0:00:17.4]} 32... Nf4 {[%clk 0:00:09.8]}
33. a5 {[%clk 0:00:16.7]} 33... Nd3 {[%clk 0:00:04.6]} 34. a6 {[%clk 0:00:14.3]}
34... Nxb2+ {[%clk 0:00:04.2]} 35. Nxb2 {[%clk 0:00:14]} 35... Rxb2 {[%clk
0:00:05.1]} 36. a7 {[%clk 0:00:12.3]} 36... Ra2 {[%clk 0:00:04]} 37. Rb8+ {[%clk
0:00:12]} 37... Kg7 {[%clk 0:00:04.4]} 38. a8=Q {[%clk 0:00:12.1]} 38... Rxa8
{[%clk 0:00:03.1]} 39. Rxa8 {[%clk 0:00:13]} 1-0

[Event "*** SCC Grand Prix: Titled Tuesday Blitz"]
[Site "Chess.com"]
[Date "2020.08.11"]
[Round "1"]
[White "artichaud"]
[Black "Sophist4Life"]
[Result "0-1"]
[WhiteElo "2157"]
[BlackElo "2524"]
[TimeControl "180+1"]
[EndTime "10:07:23 PDT"]
[Termination "Sophist4Life won on time"]

1. e4 {[%clk 0:03:00]} 1... c5 {[%clk 0:02:58.8]} 2. Nf3 {[%clk 0:02:59.7]} 2...
d6 {[%clk 0:02:55.5]} 3. d4 {[%clk 0:02:59.5]} 3... cxd4 {[%clk 0:02:56.4]} 4.
Nxd4 {[%clk 0:03:00.4]} 4... Nf6 {[%clk 0:02:56]} 5. Nc3 {[%clk 0:03:00.2]} 5...
a6 {[%clk 0:02:56.4]} 6. h3 {[%clk 0:02:59.8]} 6... e5 {[%clk 0:02:55.7]} 7.
Nde2 {[%clk 0:02:59.8]} 7... Be7 {[%clk 0:02:55.9]} 8. g4 {[%clk 0:02:58.9]}
8... h6 {[%clk 0:02:53.6]} 9. Bg2 {[%clk 0:02:51.6]} 9... Be6 {[%clk 0:02:53.4]}
10. Ng3 {[%clk 0:02:46.1]} 10... g6 {[%clk 0:02:45.4]} 11. Be3 {[%clk
0:02:41.8]} 11... Nbd7 {[%clk 0:02:44.2]} 12. Qd2 {[%clk 0:02:37.5]} 12... Bf8
{[%clk 0:02:41.9]} 13. a4 {[%clk 0:02:30.1]} 13... Qc7 {[%clk 0:02:40.6]} 14.
O-O {[%clk 0:02:27.6]} 14... Rc8 {[%clk 0:02:40.4]} 15. a5 {[%clk 0:02:19.1]}
15... h5 {[%clk 0:02:37]} 16. g5 {[%clk 0:02:16.9]} 16... h4 {[%clk 0:02:31.5]}
17. Nge2 {[%clk 0:02:07.8]} 17... Nh5 {[%clk 0:02:29.9]} 18. f4 {[%clk
0:02:03.4]} 18... exf4 {[%clk 0:02:27.8]} 19. Nxf4 {[%clk 0:02:03.2]} 19... Nxf4
{[%clk 0:02:27]} 20. Bxf4 {[%clk 0:01:58.4]} 20... Ne5 {[%clk 0:02:26.9]} 21.
Rf2 {[%clk 0:01:52]} 21... Bg7 {[%clk 0:02:25]} 22. Nd5 {[%clk 0:01:49]} 22...
Bxd5 {[%clk 0:02:19.9]} 23. Qxd5 {[%clk 0:01:49.9]} 23... Qc6 {[%clk 0:02:13.4]}
24. Rd1 {[%clk 0:01:46.4]} 24... Qxd5 {[%clk 0:02:12.9]} 25. Rxd5 {[%clk
0:01:45.5]} 25... Rc6 {[%clk 0:02:12.3]} 26. b3 {[%clk 0:01:37.9]} 26... Ke7
{[%clk 0:02:12]} 27. c4 {[%clk 0:01:36.3]} 27... Rc5 {[%clk 0:02:03.3]} 28. Rfd2
{[%clk 0:01:24]} 28... Rxd5 {[%clk 0:02:01.3]} 29. exd5 {[%clk 0:01:23]} 29...
f5 {[%clk 0:01:45.6]} 30. gxf6+ {[%clk 0:01:19.9]} 30... Bxf6 {[%clk 0:01:44.8]}
31. Be4 {[%clk 0:01:14.9]} 31... g5 {[%clk 0:01:44.1]} 32. Be3 {[%clk
0:01:11.5]} 32... g4 {[%clk 0:01:41]} 33. hxg4 {[%clk 0:01:07.3]} 33... Nxg4
{[%clk 0:01:41.5]} 34. Bf4 {[%clk 0:01:06.9]} 34... h3 {[%clk 0:01:35.4]} 35.
Bf5 {[%clk 0:00:55.4]} 35... Rg8 {[%clk 0:01:32.7]} 36. Be6 {[%clk 0:00:44.1]}
36... Rg7 {[%clk 0:01:31.2]} 37. Kh1 {[%clk 0:00:42]} 37... Be5 {[%clk
0:01:28.4]} 38. Bxg4 {[%clk 0:00:34.8]} 38... Bxf4 {[%clk 0:01:19.6]} 39. Re2+
{[%clk 0:00:34.2]} 39... Be5 {[%clk 0:01:19.3]} 40. Bxh3 {[%clk 0:00:34]} 40...
Rg3 {[%clk 0:01:19.3]} 41. Bc8 {[%clk 0:00:31.3]} 41... Rxb3 {[%clk 0:01:19.2]}
42. Kg2 {[%clk 0:00:30.5]} 42... Rb4 {[%clk 0:01:18.8]} 43. Kf3 {[%clk
0:00:24.5]} 43... Kd8 {[%clk 0:01:18.6]} 44. Be6 {[%clk 0:00:21.3]} 44... Rxc4
{[%clk 0:01:18]} 45. Rg2 {[%clk 0:00:19]} 45... Kc7 {[%clk 0:01:16.4]} 46. Rg8
{[%clk 0:00:16.5]} 46... Rc3+ {[%clk 0:01:12.8]} 47. Ke4 {[%clk 0:00:15.2]}
47... b5 {[%clk 0:01:11.5]} 48. Bc8 {[%clk 0:00:02.1]} 48... Ra3 {[%clk
0:01:03.1]} 0-1

[Event "*** SCC Grand Prix: Titled Tuesday Blitz"]
[Site "Chess.com"]
[Date "2020.08.11"]
[Round "1"]
[White "Paladin61"]
[Black "novocane"]
[Result "1-0"]
[WhiteElo "2615"]
[BlackElo "2269"]
[TimeControl "180+1"]
[EndTime "10:07:24 PDT"]
[Termination "Paladin61 won by checkmate"]

1. b3 {[%clk 0:02:58.4]} 1... e5 {[%clk 0:02:45.5]} 2. Bb2 {[%clk 0:02:59.3]}
2... Nc6 {[%clk 0:02:40.3]} 3. e3 {[%clk 0:02:59.7]} 3... Nf6 {[%clk 0:02:39.2]}
4. Bb5 {[%clk 0:02:58.3]} 4... Bd6 {[%clk 0:02:38.7]} 5. Na3 {[%clk 0:02:57.9]}
5... a6 {[%clk 0:02:32.4]} 6. Be2 {[%clk 0:02:57]} 6... O-O {[%clk 0:02:30.3]}
7. Nc4 {[%clk 0:02:55.7]} 7... Qe7 {[%clk 0:01:58.4]} 8. Nxd6 {[%clk 0:02:53]}
8... Qxd6 {[%clk 0:01:58.4]} 9. d3 {[%clk 0:02:50.4]} 9... Re8 {[%clk
0:01:57.4]} 10. Nf3 {[%clk 0:02:42.8]} 10... Qe6 {[%clk 0:01:50.1]} 11. c4
{[%clk 0:02:31.6]} 11... b6 {[%clk 0:01:41.4]} 12. O-O {[%clk 0:02:10.4]} 12...
Bb7 {[%clk 0:01:40.5]} 13. a3 {[%clk 0:02:02.3]} 13... d5 {[%clk 0:01:37.1]} 14.
cxd5 {[%clk 0:01:58.7]} 14... Nxd5 {[%clk 0:01:36.6]} 15. Rc1 {[%clk 0:01:55.3]}
15... Rad8 {[%clk 0:01:35.4]} 16. Qc2 {[%clk 0:01:54.8]} 16... h6 {[%clk
0:01:29]} 17. b4 {[%clk 0:01:47.3]} 17... Qg6 {[%clk 0:01:18.3]} 18. Rfe1 {[%clk
0:01:26.4]} 18... Kh8 {[%clk 0:01:15]} 19. Bf1 {[%clk 0:01:09.2]} 19... f5
{[%clk 0:00:43.5]} 20. g3 {[%clk 0:00:55.2]} 20... Nf6 {[%clk 0:00:29.3]} 21.
Nh4 {[%clk 0:00:47.2]} 21... Qh7 {[%clk 0:00:28.7]} 22. Bg2 {[%clk 0:00:48.1]}
22... e4 {[%clk 0:00:25.4]} 23. dxe4 {[%clk 0:00:37.2]} 23... Nxe4 {[%clk
0:00:20.8]} 24. Rcd1 {[%clk 0:00:31.4]} 24... Rxd1 {[%clk 0:00:19.1]} 25. Rxd1
{[%clk 0:00:30.9]} 25... Kg8 {[%clk 0:00:14.9]} 26. Rd7 {[%clk 0:00:29.5]} 26...
Re7 {[%clk 0:00:12.3]} 27. Rxe7 {[%clk 0:00:28.8]} 27... Nxe7 {[%clk 0:00:12.6]}
28. Qxc7 {[%clk 0:00:29.4]} 28... g5 {[%clk 0:00:10.6]} 29. Nf3 {[%clk
0:00:21.2]} 29... Bd5 {[%clk 0:00:09]} 30. Qd8+ {[%clk 0:00:14.7]} 30... Kf7
{[%clk 0:00:09]} 31. Ne5+ {[%clk 0:00:15.6]} 31... Ke6 {[%clk 0:00:08.8]} 32.
Qxb6+ {[%clk 0:00:16.1]} 32... Nc6 {[%clk 0:00:08.3]} 33. Nxc6 {[%clk
0:00:15.5]} 33... Nxf2 {[%clk 0:00:08]} 34. Nd4+ {[%clk 0:00:13.7]} 34... Ke5
{[%clk 0:00:08.1]} 35. Nf3+ {[%clk 0:00:08.6]} 35... Ke4 {[%clk 0:00:08]} 36.
Qd4# {[%clk 0:00:09.4]} 1-0

[Event "*** SCC Grand Prix: Titled Tuesday Blitz"]
[Site "Chess.com"]
[Date "2020.08.11"]
[Round "1"]
[White "JoliyRoger"]
[Black "AlexTriapishko"]
[Result "0-1"]
[WhiteElo "2326"]
[BlackElo "2667"]
[TimeControl "180+1"]
[EndTime "10:07:25 PDT"]
[Termination "AlexTriapishko won by resignation"]

1. Nf3 {[%clk 0:02:56.5]} 1... d5 {[%clk 0:02:57.8]} 2. c4 {[%clk 0:02:56.8]}
2... d4 {[%clk 0:02:56.7]} 3. d3 {[%clk 0:02:56.9]} 3... Nc6 {[%clk 0:02:56.3]}
4. e3 {[%clk 0:02:56.5]} 4... e5 {[%clk 0:02:56]} 5. Be2 {[%clk 0:02:54.2]} 5...
Bb4+ {[%clk 0:02:52]} 6. Kf1 {[%clk 0:02:51.7]} 6... Nf6 {[%clk 0:02:50.7]} 7.
e4 {[%clk 0:02:50.2]} 7... a5 {[%clk 0:02:50.1]} 8. h3 {[%clk 0:02:45.3]} 8...
O-O {[%clk 0:02:49.7]} 9. g3 {[%clk 0:02:45.7]} 9... Nd7 {[%clk 0:02:48.2]} 10.
Kg2 {[%clk 0:02:45.7]} 10... Bd6 {[%clk 0:02:48.6]} 11. Bg5 {[%clk 0:02:19.7]}
11... f6 {[%clk 0:02:47.9]} 12. Bc1 {[%clk 0:02:19.4]} 12... Nc5 {[%clk
0:02:48.2]} 13. Nbd2 {[%clk 0:02:15.3]} 13... f5 {[%clk 0:02:48.2]} 14. Nb3
{[%clk 0:02:08.1]} 14... fxe4 {[%clk 0:02:47.9]} 15. dxe4 {[%clk 0:02:07.4]}
15... Nxe4 {[%clk 0:02:48.1]} 16. Bd3 {[%clk 0:02:06.1]} 16... Bf5 {[%clk
0:02:38.4]} 17. Re1 {[%clk 0:02:02.1]} 17... Nc5 {[%clk 0:02:16.4]} 18. Nxc5
{[%clk 0:02:00.3]} 18... Bxc5 {[%clk 0:02:15.6]} 19. Nxe5 {[%clk 0:01:58.1]}
19... Qf6 {[%clk 0:02:04.8]} 20. f4 {[%clk 0:01:25.7]} 20... Bb4 {[%clk
0:01:51.5]} 21. Bxf5 {[%clk 0:00:45]} 21... Qxf5 {[%clk 0:01:48.2]} 22. Bd2
{[%clk 0:00:44.9]} 22... Rad8 {[%clk 0:01:40.9]} 23. a3 {[%clk 0:00:31.3]} 23...
Bxd2 {[%clk 0:01:35]} 24. Qxd2 {[%clk 0:00:30.6]} 24... d3 {[%clk 0:01:35.5]}
25. Re3 {[%clk 0:00:28.5]} 25... Nxe5 {[%clk 0:01:24.7]} 26. Rxe5 {[%clk
0:00:28.1]} 26... Qf7 {[%clk 0:01:25.3]} 27. b3 {[%clk 0:00:25.5]} 27... a4
{[%clk 0:01:25.2]} 28. Re3 {[%clk 0:00:21.8]} 28... axb3 {[%clk 0:01:17.3]} 29.
Rxd3 {[%clk 0:00:22.1]} 29... Qf6 {[%clk 0:01:13.1]} 30. Rb1 {[%clk 0:00:20.9]}
30... Rxd3 {[%clk 0:01:09.8]} 31. Qxd3 {[%clk 0:00:21]} 31... Rd8 {[%clk
0:01:10.7]} 32. Qe2 {[%clk 0:00:13.6]} 32... Qc6+ {[%clk 0:01:07.6]} 33. Kh2
{[%clk 0:00:12.9]} 33... Re8 {[%clk 0:01:07.5]} 34. Qf2 {[%clk 0:00:11.2]} 34...
Qxc4 {[%clk 0:01:04.5]} 35. Re1 {[%clk 0:00:11.6]} 35... Rxe1 {[%clk 0:00:57.3]}
36. Qxe1 {[%clk 0:00:12.1]} 36... Kf7 {[%clk 0:00:58.1]} 37. Qe5 {[%clk
0:00:07.5]} 37... g6 {[%clk 0:00:35.7]} 38. f5 {[%clk 0:00:07]} 38... Qc2+
{[%clk 0:00:34.5]} 39. Kh1 {[%clk 0:00:07.5]} 39... gxf5 {[%clk 0:00:32.7]} 40.
Qd5+ {[%clk 0:00:07.9]} 40... Kf6 {[%clk 0:00:19.4]} 41. h4 {[%clk 0:00:07.9]}
41... Qe4+ {[%clk 0:00:18.3]} 0-1

[Event "*** SCC Grand Prix: Titled Tuesday Blitz"]
[Site "Chess.com"]
[Date "2020.08.11"]
[Round "1"]
[White "tigra"]
[Black "Artem_Sadovsky"]
[Result "1-0"]
[WhiteElo "2872"]
[BlackElo "2421"]
[TimeControl "180+1"]
[EndTime "10:07:26 PDT"]
[Termination "tigra won on time"]

1. e4 {[%clk 0:02:48.7]} 1... c6 {[%clk 0:02:57.9]} 2. d4 {[%clk 0:02:44.2]}
2... d5 {[%clk 0:02:58.1]} 3. e5 {[%clk 0:02:44.9]} 3... c5 {[%clk 0:02:56.9]}
4. dxc5 {[%clk 0:02:43.8]} 4... Nc6 {[%clk 0:02:57.3]} 5. Nf3 {[%clk 0:02:43.7]}
5... Bg4 {[%clk 0:02:55.1]} 6. Bb5 {[%clk 0:02:43.5]} 6... e6 {[%clk 0:02:53.4]}
7. Be3 {[%clk 0:02:43.2]} 7... Qc7 {[%clk 0:02:43.9]} 8. c3 {[%clk 0:02:35.7]}
8... Ne7 {[%clk 0:02:38.1]} 9. Nbd2 {[%clk 0:02:26.6]} 9... Ng6 {[%clk 0:02:31]}
10. Qa4 {[%clk 0:02:24.4]} 10... Bxf3 {[%clk 0:02:22.2]} 11. Nxf3 {[%clk
0:02:25.3]} 11... a6 {[%clk 0:02:14.5]} 12. b4 {[%clk 0:01:14.5]} 12... Be7
{[%clk 0:02:11.7]} 13. Bxc6+ {[%clk 0:01:08.1]} 13... bxc6 {[%clk 0:02:10.8]}
14. Nd4 {[%clk 0:01:00.5]} 14... Nxe5 {[%clk 0:02:01.6]} 15. O-O {[%clk
0:00:54.3]} 15... O-O {[%clk 0:01:58.4]} 16. Bf4 {[%clk 0:00:54.1]} 16... Nf3+
{[%clk 0:01:43.5]} 17. Nxf3 {[%clk 0:00:52.6]} 17... Qxf4 {[%clk 0:01:44.4]} 18.
Qxc6 {[%clk 0:00:52.9]} 18... Bf6 {[%clk 0:01:42.8]} 19. Rac1 {[%clk 0:00:49.9]}
19... Rfc8 {[%clk 0:01:33.4]} 20. Qa4 {[%clk 0:00:45.3]} 20... Rxc5 {[%clk
0:01:30.8]} 21. g3 {[%clk 0:00:38.9]} 21... Qc4 {[%clk 0:01:14.4]} 22. Nd2
{[%clk 0:00:37.1]} 22... Qb5 {[%clk 0:01:14.6]} 23. Qb3 {[%clk 0:00:37.8]} 23...
Rc7 {[%clk 0:01:12.7]} 24. c4 {[%clk 0:00:38.2]} 24... dxc4 {[%clk 0:01:10.8]}
25. Rxc4 {[%clk 0:00:39.1]} 25... Rxc4 {[%clk 0:01:05.1]} 26. Nxc4 {[%clk
0:00:40]} 26... Rb8 {[%clk 0:01:05.6]} 27. Rb1 {[%clk 0:00:39.4]} 27... h5
{[%clk 0:01:00]} 28. a4 {[%clk 0:00:38.6]} 28... Qd5 {[%clk 0:00:57.9]} 29. Ne3
{[%clk 0:00:34.9]} 29... Qf3 {[%clk 0:00:47.9]} 30. Qd3 {[%clk 0:00:20.2]} 30...
h4 {[%clk 0:00:43.8]} 31. Qxa6 {[%clk 0:00:20.2]} 31... h3 {[%clk 0:00:38.7]}
32. Qf1 {[%clk 0:00:19.2]} 32... Bd4 {[%clk 0:00:37.4]} 33. Nc4 {[%clk
0:00:16.8]} 33... Qd5 {[%clk 0:00:23.5]} 34. b5 {[%clk 0:00:14.1]} 34... Rc8
{[%clk 0:00:20.3]} 35. Rc1 {[%clk 0:00:14.2]} 35... Bxf2+ {[%clk 0:00:07.1]} 36.
Kxf2 {[%clk 0:00:14]} 36... Qd4+ {[%clk 0:00:05]} 37. Kf3 {[%clk 0:00:12.6]}
37... Rc5 {[%clk 0:00:02.5]} 38. Ne3 {[%clk 0:00:12.1]} 1-0

[Event "*** SCC Grand Prix: Titled Tuesday Blitz"]
[Site "Chess.com"]
[Date "2020.08.11"]
[Round "1"]
[White "Legendinunknown"]
[Black "tteshan"]
[Result "1-0"]
[WhiteElo "2589"]
[BlackElo "2233"]
[TimeControl "180+1"]
[EndTime "10:07:26 PDT"]
[Termination "Legendinunknown won by resignation"]

1. d4 {[%clk 0:02:59.6]} 1... Nf6 {[%clk 0:02:58.7]} 2. c4 {[%clk 0:02:58.9]}
2... e6 {[%clk 0:02:57.6]} 3. Nf3 {[%clk 0:02:57.9]} 3... c5 {[%clk 0:02:57.2]}
4. d5 {[%clk 0:02:57.5]} 4... exd5 {[%clk 0:02:44.3]} 5. cxd5 {[%clk 0:02:58.4]}
5... d6 {[%clk 0:02:45.2]} 6. Nc3 {[%clk 0:02:56.4]} 6... g6 {[%clk 0:02:42.4]}
7. Nd2 {[%clk 0:02:54.4]} 7... Bg7 {[%clk 0:02:37.4]} 8. e4 {[%clk 0:02:53.7]}
8... O-O {[%clk 0:02:36.4]} 9. Be2 {[%clk 0:02:53.8]} 9... Re8 {[%clk
0:02:32.8]} 10. O-O {[%clk 0:02:51.7]} 10... Na6 {[%clk 0:02:29.9]} 11. f3
{[%clk 0:02:46.3]} 11... Nc7 {[%clk 0:02:20.2]} 12. a4 {[%clk 0:02:43.8]} 12...
b6 {[%clk 0:02:17]} 13. Nc4 {[%clk 0:02:41.1]} 13... Ba6 {[%clk 0:02:16.3]} 14.
Bf4 {[%clk 0:02:11.5]} 14... Bxc4 {[%clk 0:02:13.9]} 15. Bxc4 {[%clk 0:02:11]}
15... a6 {[%clk 0:01:57.6]} 16. Qd2 {[%clk 0:02:07.8]} 16... Qe7 {[%clk
0:01:52.6]} 17. e5 {[%clk 0:01:34.7]} 17... dxe5 {[%clk 0:01:50.9]} 18. d6
{[%clk 0:01:34.9]} 18... Qd7 {[%clk 0:01:49.4]} 19. Bg5 {[%clk 0:00:57.5]} 19...
Ne6 {[%clk 0:01:09.4]} 20. Bxf6 {[%clk 0:00:56.5]} 20... Bxf6 {[%clk 0:01:09.8]}
21. Nd5 {[%clk 0:00:55.7]} 21... Bd8 {[%clk 0:01:02.5]} 22. f4 {[%clk
0:00:54.2]} 22... exf4 {[%clk 0:00:44.8]} 23. Nxf4 {[%clk 0:00:52.2]} 23... Bg5
{[%clk 0:00:40.2]} 24. g3 {[%clk 0:00:46.1]} 24... Bxf4 {[%clk 0:00:39]} 25.
gxf4 {[%clk 0:00:46]} 25... Nd4 {[%clk 0:00:39]} 26. f5 {[%clk 0:00:37.3]} 26...
Qxd6 {[%clk 0:00:22.8]} 27. fxg6 {[%clk 0:00:27.2]} 27... Nf3+ {[%clk
0:00:20.3]} 28. Rxf3 {[%clk 0:00:23.5]} 28... Qxd2 {[%clk 0:00:20.8]} 29. gxf7+
{[%clk 0:00:23.6]} 29... Kh8 {[%clk 0:00:18.3]} 30. fxe8=Q+ {[%clk 0:00:23]}
30... Rxe8 {[%clk 0:00:19.2]} 31. Bxa6 {[%clk 0:00:20.4]} 31... Qd4+ {[%clk
0:00:18.3]} 32. Kh1 {[%clk 0:00:19.9]} 32... Qxb2 {[%clk 0:00:17.4]} 33. Raf1
{[%clk 0:00:19.3]} 33... Qb4 {[%clk 0:00:15]} 34. Bb5 {[%clk 0:00:19.2]} 34...
Re7 {[%clk 0:00:14.3]} 35. Rg3 {[%clk 0:00:17.6]} 35... Qe4+ {[%clk 0:00:14.1]}
36. Kg1 {[%clk 0:00:17.7]} 36... h5 {[%clk 0:00:12.2]} 37. Rf8+ {[%clk
0:00:16.4]} 37... Kh7 {[%clk 0:00:11]} 38. Bd3 {[%clk 0:00:17]} 38... c4 {[%clk
0:00:07.2]} 39. Bxe4+ {[%clk 0:00:16.8]} 39... Rxe4 {[%clk 0:00:08.1]} 40. Rc8
{[%clk 0:00:16.9]} 40... c3 {[%clk 0:00:07]} 41. Rgxc3 {[%clk 0:00:17.2]} 1-0

[Event "*** SCC Grand Prix: Titled Tuesday Blitz"]
[Site "Chess.com"]
[Date "2020.08.11"]
[Round "1"]
[White "attack2mateU"]
[Black "Alindsay211"]
[Result "1-0"]
[WhiteElo "2718"]
[BlackElo "2357"]
[TimeControl "180+1"]
[EndTime "10:07:29 PDT"]
[Termination "attack2mateU won by checkmate"]

1. e4 {[%clk 0:03:00.9]} 1... c5 {[%clk 0:02:54.3]} 2. Nf3 {[%clk 0:03:00.4]}
2... e6 {[%clk 0:02:53.5]} 3. c3 {[%clk 0:02:59.2]} 3... Nc6 {[%clk 0:02:48.4]}
4. d4 {[%clk 0:02:58.8]} 4... cxd4 {[%clk 0:02:47.8]} 5. cxd4 {[%clk 0:02:59.7]}
5... d5 {[%clk 0:02:47.8]} 6. e5 {[%clk 0:02:59.5]} 6... Qb6 {[%clk 0:02:47.3]}
7. Nc3 {[%clk 0:02:52.1]} 7... h5 {[%clk 0:02:44.4]} 8. a3 {[%clk 0:02:48.3]}
8... Nh6 {[%clk 0:02:43.8]} 9. Bd3 {[%clk 0:02:48]} 9... Be7 {[%clk 0:02:43.3]}
10. O-O {[%clk 0:02:44.4]} 10... Bd7 {[%clk 0:02:42.9]} 11. Bc2 {[%clk 0:02:40]}
11... Rc8 {[%clk 0:02:40.7]} 12. Rb1 {[%clk 0:02:35.8]} 12... a6 {[%clk
0:02:39]} 13. Be3 {[%clk 0:02:34.9]} 13... Na5 {[%clk 0:02:37.1]} 14. Na4 {[%clk
0:02:31.3]} 14... Qc7 {[%clk 0:02:33.4]} 15. Bd3 {[%clk 0:01:58.6]} 15... b5
{[%clk 0:02:25.2]} 16. Nc5 {[%clk 0:01:55.2]} 16... Qa7 {[%clk 0:01:58.2]} 17.
b3 {[%clk 0:01:45.9]} 17... Ng4 {[%clk 0:01:54.5]} 18. Bd2 {[%clk 0:01:25.4]}
18... Nc6 {[%clk 0:01:34.2]} 19. b4 {[%clk 0:01:23.8]} 19... Nh6 {[%clk
0:01:08]} 20. Re1 {[%clk 0:01:09.5]} 20... Nb8 {[%clk 0:00:52.4]} 21. Bg5 {[%clk
0:01:07.9]} 21... Bc6 {[%clk 0:00:50.7]} 22. Rc1 {[%clk 0:01:02.2]} 22... Nd7
{[%clk 0:00:36.1]} 23. Bxe7 {[%clk 0:01:01.2]} 23... Kxe7 {[%clk 0:00:34.8]} 24.
Qd2 {[%clk 0:01:01.2]} 24... Nb6 {[%clk 0:00:21.8]} 25. Qg5+ {[%clk 0:00:58.8]}
25... Kf8 {[%clk 0:00:21.2]} 26. Qxh5 {[%clk 0:00:57.3]} 26... Nc4 {[%clk
0:00:18]} 27. Ng5 {[%clk 0:00:55.6]} 27... Qe7 {[%clk 0:00:08.6]} 28. Rc3 {[%clk
0:00:51.9]} 28... Kg8 {[%clk 0:00:07.5]} 29. f4 {[%clk 0:00:23.6]} 29... Nf5
{[%clk 0:00:06.7]} 30. Qd1 {[%clk 0:00:23.9]} 30... g6 {[%clk 0:00:03.5]} 31.
Bxf5 {[%clk 0:00:21.5]} 31... gxf5 {[%clk 0:00:03]} 32. Rg3 {[%clk 0:00:21]}
32... Kf8 {[%clk 0:00:03.1]} 33. Nxa6 {[%clk 0:00:15.1]} 33... Ra8 {[%clk
0:00:02.5]} 34. Nc5 {[%clk 0:00:14.5]} 34... Rxa3 {[%clk 0:00:02.5]} 35. Rxa3
{[%clk 0:00:14]} 35... Nxa3 {[%clk 0:00:03.4]} 36. Qb3 {[%clk 0:00:09.9]} 36...
Nc4 {[%clk 0:00:04.3]} 37. Ra1 {[%clk 0:00:09.8]} 37... Kg7 {[%clk 0:00:04.2]}
38. Qg3 {[%clk 0:00:08.2]} 38... Rh6 {[%clk 0:00:03.7]} 39. Ngxe6+ {[%clk
0:00:05.4]} 39... Kh7 {[%clk 0:00:02.3]} 40. Qg7# {[%clk 0:00:06]} 1-0